bitfinex-derivatives/quotes_SOLF0:USTF0_20250413
["timestamp","ask_amount","ask_price","bid_price","bid_amount"]
[1744553804382,7.8368,127.65,127.64,0.05576355]
[1744553805984,7.8368,127.65,127.64,6.355e-05]
[1744553808391,628.34,127.65,127.51,660.98387686]
[1744553808585,628.34,127.65,127.54,2.1105]
[1744553808586,620.5,127.65,127.54,2.1105]
[1744553808792,26.23514252,127.68,127.55,39.76]
[1744553808993,7.8381,127.63,127.59,7.8405]
[1744553809194,39.76,127.69,127.6,4.4418]
[1744553809391,7.8378,127.64,127.6,4.4418]
[1744553809592,7.8378,127.64,127.61,2.1105]
[1744553809797,0.05664371,127.63,127.61,2.1105]
[1744553810595,7.8374,127.65,127.61,2.1105]
[1744553810896,39.76,127.69,127.61,2.1105]
[1744553811695,7.8374,127.65,127.64,0.05626227]
[1744553814694,7.88767558,127.66,127.64,0.05626227]
[1744553814898,0.05117558,127.66,127.64,0.05626227]
[1744553815100,7.8368,127.65,127.64,0.05626227]
[1744553817199,7.88767558,127.66,127.64,0.05626227]
[1744553817395,0.05117558,127.66,127.64,0.05626227]
[1744553817590,7.8348,127.69,127.64,0.05626227]
[1744553817796,39.76,127.72,127.65,16.49998903]
[1744553817993,56.25998903,127.75,127.66,2.3119]
[1744553818600,39.76,127.75,127.67,16.49998903]
[1744553818897,0.04982691,127.72,127.69,0.05863168]
[1744553819295,620.64,127.77,127.69,0.05863168]
[1744553819495,7.831,127.75,127.71,7.8329]
[1744553819797,7.831,127.75,127.68,28.58319514]
[1744553819798,39.76,127.78,127.7,39.76]
[1744553819992,7.8305,127.76,127.72,7.8325]
[1744553820192,7.8305,127.76,127.7,39.76]
[1744553820193,39.76,127.82,127.71,26.36879514]
[1744553820392,39.76,127.82,127.72,2.3119]
[1744553820596,7.87926304,127.78,127.75,0.05666186]
[1744553821001,0.05006304,127.78,127.75,0.05666186]
[1744553821191,7.87896304,127.78,127.75,0.05666186]
[1744553821396,0.05006304,127.78,127.75,0.05666186]
[1744553821699,0.2446,127.86,127.75,0.05666186]
[1744553821700,39.76,127.88,127.76,26.36879514]
[1744553821902,39.76,127.88,127.79,26.36879514]
[1744553822103,26.36879514,127.92,127.79,26.36879514]
[1744553822104,39.76,127.91,127.83,7.8256]
[1744553822298,39.76,127.91,127.8,2.1737]
[1744553822499,39.76,127.91,127.76,978.54]
[1744553822701,7.8262,127.83,127.78,7.8284]
[1744553822898,0.04979605,127.87,127.78,384.36879514]
[1744553823097,39.76,127.91,127.82,0.05855841]
[1744553823300,0.05164278,127.84,127.82,0.05855841]
[1744553823501,39.76,127.91,127.81,39.76]
[1744553824503,7.8253,127.84,127.81,39.76]
[1744553824697,0.4177,127.94,127.85,8.622e-05]
[1744553824698,66.03956028,127.87,127.85,8.622e-05]
[1744553825004,7.8299,127.77,127.72,7.8322]
[1744553825303,65.98879514,127.81,127.72,2.2864]
[1744553825504,39.62,127.8,127.72,2.2864]
[1744553825703,39.62,127.8,127.72,10.1187]
[1744553825905,0.05184368,127.77,127.75,0.05421136]
[1744553826105,7.8301,127.76,127.75,0.05421136]
[1744553826800,7.8322,127.73,127.68,7.8348]
[1744553827001,39.62,127.76,127.68,2.1536]
[1744553827402,7.832,127.73,127.69,7.834]
[1744553827901,7.8318,127.74,127.69,7.834]
[1744553828106,0.05096258,127.72,127.7,7.88977884]
[1744553828308,39.62,127.76,127.71,1.9699]
[1744553828605,7.8313,127.74,127.71,1.9699]
[1744553829108,39.62,127.76,127.71,1.9699]
[1744553829399,39.62,127.76,127.7,0.05607884]
[1744553829604,0.05734957,127.75,127.7,0.05607884]
[1744553830006,7.8323,127.73,127.7,0.05607884]
[1744553830206,0.05734957,127.75,127.7,0.05607884]
[1744553830806,0.05734957,127.75,127.7,39.67607884]
[1744553834313,7.8323,127.73,127.7,39.67607884]
[1744553834613,7.8323,127.73,127.7,0.05607884]
[1744553834912,7.8327,127.72,127.7,0.05607884]
[1744553835113,26.36879514,127.78,127.7,0.05607884]
[1744553835309,0.05010295,127.72,127.68,2.1536]
[1744553835512,26.36879514,127.78,127.73,0.04941899]
[1744553835713,26.36879514,127.78,127.68,2.1536]
[1744553835913,26.36879514,127.75,127.68,2.1536]
[1744553836105,39.62,127.74,127.65,359.9699]
[1744553836306,26.36879514,127.72,127.65,1.9699]
[1744553836510,7.8353,127.68,127.65,1.9699]
[1744553836710,7.8353,127.68,127.67,0.04968939]
[1744553836911,0.05027056,127.7,127.67,0.04968939]
[1744553837619,7.88447056,127.7,127.67,0.04968939]
[1744553837819,0.05027056,127.7,127.67,0.04968939]
[1744553838221,7.835,127.68,127.67,0.04968939]
[1744553839218,7.8373,127.65,127.61,43.6834]
[1744553839421,7.8373,127.65,127.61,4.0634]
[1744553839616,7.8375,127.64,127.61,11.9027]
[1744553839823,7.8375,127.64,127.61,2.0786]
[1744553840024,65.98879514,127.7,127.61,2.0786]
[1744553840219,7.8381,127.63,127.58,39.62]
[1744553840524,39.62,127.66,127.58,41.7878]
[1744553840825,0.05906533,127.62,127.6,7.8399]
[1744553841123,0.05906533,127.62,127.58,41.7878]
[1744553841320,7.89816533,127.62,127.6,0.05852326]
[1744553841720,0.05906533,127.62,127.6,0.05852326]
[1744553841920,39.62,127.69,127.6,0.05852326]
[1744553842120,39.62,127.69,127.58,41.7878]
[1744553842827,7.8366,127.66,127.62,7.8384]
[1744553843126,0.055862,127.65,127.63,0.05876575]
[1744553843527,39.62,127.73,127.63,39.67876575]
[1744553843721,39.62,127.73,127.64,4.1612]
[1744553844025,7.8343,127.7,127.66,7.8362]
[1744553844625,0.05029122,127.69,127.67,0.05515246]
[1744553845623,39.62,127.73,127.67,0.05515246]
[1744553845824,7.8329,127.72,127.68,7.8347]
[1744553846730,0.05088996,127.71,127.68,7.8347]
[1744553849935,0.05088996,127.71,127.67,39.67515246]
[1744553850528,7.88438996,127.71,127.67,47.51045246]
[1744553850739,0.05088996,127.71,127.67,0.05515246]
[1744553851535,7.8347,127.69,127.67,0.05515246]
[1744553852836,7.835,127.68,127.67,0.05515246]
[1744553853029,0.05088996,127.71,127.67,0.05515246]
[1744553853436,7.8347,127.69,127.67,0.05515246]
[1744553854134,0.05088996,127.71,127.68,39.62]
[1744553854534,7.88438996,127.71,127.68,39.62]
[1744553855234,0.05088996,127.71,127.68,39.62]
[1744553855429,0.05088996,127.71,127.68,41.7377]
[1744553855826,0.05088996,127.71,127.7,7.8338]
[1744553856026,0.05088996,127.71,127.68,41.7377]
[1744553857342,7.8316,127.74,127.68,41.7377]
[1744553857835,26.36879514,127.78,127.68,2.1177]
[1744553858033,26.36879514,127.78,127.69,39.5]
[1744553858338,7.8323,127.73,127.69,47.3341]
[1744553858531,7.8323,127.73,127.72,0.0568265]
[1744553862442,0.05254423,127.74,127.72,0.0568265]
[1744553863237,65.86879514,127.81,127.72,7.8889265]
[1744553863538,7.8296,127.77,127.71,4.1972]
[1744553863843,7.8296,127.77,127.73,7.8316]
[1744553864539,7.88092838,127.76,127.74,0.05212666]
[1744553864740,39.5,127.81,127.74,0.05212666]
[1744553864939,0.05738415,127.76,127.74,0.05212666]
[1744553865141,7.8306,127.76,127.74,0.05212666]
[1744553865333,0.05544624,127.76,127.74,0.05212666]
[1744553865539,0.05544624,127.76,127.74,39.55212666]
[1744553866744,7.8292,127.78,127.74,39.55212666]
[1744553867348,7.8296,127.77,127.74,39.55212666]
[1744553868044,7.88455965,127.77,127.74,39.55212666]
[1744553868441,7.8301,127.76,127.74,39.55212666]
[1744553871347,7.8307,127.75,127.74,39.55212666]
[1744553872647,7.8304,127.76,127.74,39.55212666]
[1744553873047,0.05495965,127.77,127.74,39.55212666]
[1744553873249,7.8307,127.75,127.74,39.55212666]
[1744553873848,0.05495965,127.77,127.74,39.55212666]
[1744553874348,7.8304,127.76,127.74,39.55212666]
[1744553875249,7.8304,127.76,127.74,47.38342666]
[1744553875450,7.88475965,127.77,127.74,47.38342666]
[1744553876554,0.05495965,127.77,127.75,7.8303]
[1744553878852,7.88455965,127.77,127.74,47.38312666]
[1744553879054,0.05495965,127.77,127.74,0.05212666]
[1744553879355,7.8307,127.75,127.74,0.05212666]
[1744553881154,7.8307,127.75,127.69,47.314]
[1744553881155,7.8338,127.7,127.69,39.48]
[1744553881552,7.8338,127.7,127.68,4.0014]
[1744553881956,39.5,127.77,127.68,4.0014]
[1744553882450,0.05099351,127.74,127.71,0.05409564]
[1744553882755,7.832,127.73,127.71,0.05409564]
[1744553883755,39.5,127.8,127.71,0.05409564]
[1744553884057,39.5,127.83,127.71,28.43299571]
[1744553884255,7.8288,127.79,127.75,7.8307]
[1744553884652,39.5,127.83,127.76,1.9977]
[1744553885055,0.05436111,127.81,127.78,0.05988649]
[1744553885250,7.8278,127.8,127.77,7.8295]
[1744553885450,7.8278,127.8,127.78,0.05012533]
[1744553885757,7.88176111,127.81,127.78,0.05012533]
[1744553886056,0.05436111,127.81,127.78,0.05012533]
[1744553886462,7.828,127.8,127.78,0.05012533]
[1744553887155,7.8283,127.79,127.78,0.05012533]
[1744553887956,7.8283,127.79,127.78,2.533e-05]
[1744553888463,7.82,127.79,127.71,2.0652]
[1744553888659,0.0839,127.8,127.7,39.38]
[1744553889656,7.8323,127.73,127.7,39.38]
[1744553890156,0.05341932,127.73,127.7,0.05918524]
[1744553890555,7.8304,127.76,127.7,0.05918524]
[1744553890760,39.38,127.86,127.73,26.36779571]
[1744553890955,1.4009606,127.85,127.76,7.8297]
[1744553891160,7.8268,127.82,127.76,39.38]
[1744553891557,7.8262,127.83,127.76,39.38]
[1744553891764,0.05716646,127.8,127.78,0.0496046]
[1744553891963,149.8609064,127.86,127.76,65.74779571]
[1744553892263,0.05623277,127.8,127.78,0.05817302]
[1744553894464,7.88423277,127.8,127.78,0.05817302]
[1744553894658,0.05623277,127.8,127.78,0.05817302]
[1744553895264,7.88433277,127.8,127.78,0.05817302]
[1744553897865,7.8283,127.79,127.78,0.05817302]
[1744553898767,0.05623277,127.8,127.71,41.4818]
[1744553898972,26.36779571,127.78,127.68,663.6348]
[1744553899763,39.36,127.79,127.68,690.00259571]
[1744553899965,0.05581871,127.74,127.72,0.05327851]
[1744553900165,39.36,127.79,127.72,0.05327851]
[1744553900366,7.832,127.73,127.72,0.05327851]
[1744553900769,0.05732358,127.74,127.72,0.05327851]
[1744553901166,0.05732358,127.74,127.72,39.41327851]
[1744553901480,39.36,127.85,127.72,47.23327851]
[1744553901666,39.36,127.85,127.74,26.36779571]
[1744553901867,39.36,127.85,127.76,7.8297]
[1744553902167,39.36,127.85,127.76,39.36]
[1744553902366,7.8268,127.82,127.78,7.8288]
[1744553902570,0.05167196,127.82,127.79,0.05653703]
[1744553902971,7.87837196,127.82,127.79,0.05653703]
[1744553903776,7.8272,127.81,127.79,0.05653703]
[1744553903965,0.05167196,127.82,127.79,0.05653703]
[1744553905870,7.87837196,127.82,127.79,0.05653703]
[1744553906066,0.05167196,127.82,127.79,0.05653703]
[1744553906375,39.36,127.81,127.73,39.36]
[1744553906574,39.36,127.81,127.72,41.3462]
[1744553906964,39.36,127.81,127.72,49.1785]
[1744553907170,39.36,127.81,127.72,41.3462]
[1744553907468,7.8299,127.77,127.75,0.05233769]
[1744553907674,0.0498233,127.78,127.75,0.05233769]
[1744553908070,7.8301,127.76,127.75,0.05233769]
[1744553908576,7.833,127.72,127.68,627.895]
[1744553908873,39.36,127.76,127.68,620.06]
[1744553909076,7.8304,127.76,127.72,7.832]
[1744553909574,0.05693934,127.75,127.73,0.04964698]
[1744553909969,7.88763934,127.75,127.73,0.04964698]
[1744553910173,0.05693934,127.75,127.73,0.04964698]
[1744553911575,0.05693934,127.75,127.73,7.88144698]
[1744553912274,39.36,127.82,127.73,0.04964698]
[1744553912475,39.36,127.82,127.72,6.1952]
[1744553912976,39.36,127.82,127.75,7.8307]
[1744553913375,0.05847614,127.8,127.77,0.05579574]
[1744553913775,7.8287,127.79,127.77,0.05579574]
[1744553913977,0.05847614,127.8,127.77,0.05579574]
[1744553914869,0.05847614,127.8,127.78,7.8285]
[1744553915073,0.05847614,127.8,127.78,9.9421]
[1744553915973,0.05847614,127.8,127.79,7.8283]
[1744553916880,646.60779571,127.87,127.79,39.24]
[1744553917477,7.8276,127.8,127.78,2.1136]
[1744553917879,0.05835308,127.8,127.78,0.05967775]
[1744553918481,7.826,127.83,127.78,0.05967775]
[1744553918781,26.36779571,127.87,127.76,41.2952]
[1744553918980,1.39973252,127.86,127.76,41.2952]
[1744553919480,7.8295,127.77,127.73,39.24]
[1744553919878,39.24,127.82,127.74,0.05952341]
[1744553920076,0.06029486,127.76,127.75,7.8304]
[1744553920276,0.06029486,127.76,127.73,39.24]
[1744553920476,0.06029486,127.76,127.74,7.831]
[1744553920683,0.06029486,127.76,127.73,39.24]
[1744553921179,0.06029486,127.76,127.73,39.29243163]
[1744553921482,0.06029486,127.76,127.73,47.12383163]
[1744553922384,7.89039486,127.76,127.73,47.12383163]
[1744553922585,7.89039486,127.76,127.73,39.29243163]
[1744553922881,0.06029486,127.76,127.73,39.29243163]
[1744553923082,0.06029486,127.76,127.73,47.12403163]
[1744553923990,0.06029486,127.76,127.73,39.29243163]
[1744553924182,0.06029486,127.76,127.73,0.05243163]
[1744553924381,7.8313,127.74,127.73,0.05243163]
[1744553930681,0.06029486,127.76,127.67,41.3094]
[1744553930882,1.39957002,127.77,127.67,2.0694]
[1744553931285,0.1423,127.76,127.67,2.0694]
[1744553931683,0.06033271,127.73,127.7,0.05711791]
[1744553932287,7.8332,127.71,127.7,0.05711791]
[1744553932788,7.8328,127.72,127.7,0.05711791]
[1744553935895,0.06033271,127.73,127.7,0.05711791]
[1744553937195,7.833,127.72,127.7,0.05711791]
[1744553937391,0.06033271,127.73,127.7,0.05711791]
[1744553938495,7.8326,127.72,127.7,0.05711791]
[1744553938695,0.06033271,127.73,127.7,0.05711791]
[1744553938990,7.8328,127.72,127.7,0.05711791]
[1744553939590,0.06033271,127.73,127.7,0.05711791]
[1744553940396,7.8332,127.72,127.7,0.05711791]
[1744553940795,0.06033271,127.73,127.7,0.05711791]
[1744553941098,7.8332,127.71,127.7,0.05711791]
[1744553941300,0.06033271,127.73,127.7,0.05711791]
[1744553941493,7.8332,127.71,127.7,0.05711791]
[1744553942193,0.06033271,127.73,127.7,0.05711791]
[1744553943896,7.89253271,127.73,127.7,7.89061791]
[1744553944093,0.06033271,127.73,127.7,7.89061791]
[1744553945496,7.89243271,127.73,127.7,7.89061791]
[1744553945699,7.89243271,127.73,127.7,0.05711791]
[1744553946097,0.06033271,127.73,127.7,0.05711791]
[1744553947091,0.06033271,127.73,127.7,7.89051791]
[1744553947298,39.14,127.8,127.7,39.19711791]
[1744553947498,39.14,127.8,127.7,39.14]
[1744553947798,7.8304,127.76,127.71,16.48079571]
[1744553947995,7.8304,127.76,127.72,2.0104]
[1744553948197,7.8304,127.76,127.72,9.8426]
[1744553948395,0.05713903,127.75,127.73,0.05193403]
[1744553948798,0.05713903,127.75,127.73,7.88373403]
[1744553949198,0.05713903,127.75,127.73,0.05193403]
[1744553950500,0.05713903,127.75,127.73,7.88383403]
[1744553951906,0.05713903,127.75,127.73,0.05193403]
[1744553952799,0.05713903,127.75,127.73,7.88353403]
[1744553953001,7.8298,127.77,127.73,7.88353403]
[1744553953903,7.8301,127.76,127.73,7.88353403]
[1744553954103,7.88272951,127.76,127.73,0.05193403]
[1744553954601,7.88272951,127.76,127.73,7.88383403]
[1744553954901,7.8313,127.74,127.73,0.05193403]
[1744553955107,0.05262951,127.76,127.73,0.05193403]
[1744553955499,39.14,127.83,127.74,16.48079571]
[1744553955702,31.64765587,127.87,127.78,16.48079571]
[1744553955898,7.8262,127.83,127.78,55.62079571]
[1744553956202,7.8262,127.83,127.79,7.8279]
[1744553956703,0.05560399,127.82,127.8,0.05051673]
[1744553958907,7.88210399,127.82,127.8,0.05051673]
[1744553959709,0.05560399,127.82,127.8,0.05051673]
[1744553960206,0.05560399,127.82,127.8,7.87801673]
[1744553960602,0.05560399,127.82,127.8,0.05051673]
[1744553961620,7.88220399,127.82,127.8,0.05051673]
[1744553961921,0.05560399,127.82,127.8,0.05051673]
[1744553962218,7.88200399,127.82,127.8,0.05051673]
[1744553963120,0.05560399,127.82,127.8,0.05051673]
[1744553963821,0.05560399,127.82,127.8,7.87801673]
[1744553964022,0.05560399,127.82,127.8,9.90051673]
[1744553964317,0.05560399,127.82,127.8,0.05051673]
[1744553966119,7.88210399,127.82,127.8,0.05051673]
[1744553966517,0.05560399,127.82,127.8,0.05051673]
[1744553967826,16.48079571,127.81,127.73,45.233]
[1744553968029,16.48079571,127.81,127.75,7.8306]
[1744553968521,7.8286,127.79,127.75,7.8306]
[1744553968929,0.04992355,127.78,127.76,7.88212667]
[1744553969118,7.8275,127.81,127.76,0.05212667]
[1744553969318,16.48079571,127.83,127.76,0.05212667]
[1744553969529,16.48079571,127.83,127.76,7.88182667]
[1744553969730,7.828,127.8,127.76,7.88182667]
[1744553970230,0.05362788,127.79,127.76,7.88182667]
[1744553970630,0.05362788,127.79,127.77,7.8292]
[1744553971328,0.05362788,127.79,127.76,7.88192667]
[1744553971730,0.05362788,127.79,127.76,0.05212667]
[1744553971929,7.8292,127.78,127.76,0.05212667]
[1744553972230,0.05362788,127.79,127.76,0.05212667]
[1744553972830,0.05362788,127.79,127.76,7.88192667]
[1744553973327,0.05362788,127.79,127.76,0.05212667]
[1744553973529,7.8271,127.81,127.76,0.05212667]
[1744553974029,7.8271,127.81,127.77,7.8292]
[1744553974429,7.8278,127.8,127.77,7.8292]
[1744553974628,0.02260668,127.8,127.76,7.88192667]
[1744553974932,7.85060668,127.8,127.76,7.88192667]
[1744553975132,0.02260668,127.8,127.76,7.88192667]
[1744553975431,0.02260668,127.8,127.77,7.8294]
[1744553975631,7.85050668,127.8,127.76,0.05212667]
[1744553975828,0.02260668,127.8,127.76,0.05212667]
[1744553976028,0.02260668,127.8,127.76,7.88182667]
[1744553976228,16.48079571,127.88,127.78,16.48079571]
[1744553976434,55.85389571,127.9,127.8,16.48079571]
[1744553976731,31.64765587,127.91,127.82,16.48079571]
[1744553976930,15.16686016,127.91,127.85,7.8242]
[1744553977128,15.16686016,127.91,127.85,39.0]
[1744553977329,7.8235,127.87,127.8,16.48079571]
[1744553977630,31.64765587,127.91,127.81,39.0]
[1744553977826,31.64765587,127.91,127.82,0.05787689]
[1744553978020,31.64765587,127.91,127.83,7.8253]
[1744553978222,31.64765587,127.91,127.85,0.05971593]
[1744553978422,7.8231,127.88,127.85,0.05971593]
[1744553978730,31.64765587,127.91,127.85,0.05971593]
[1744553978925,16.48079571,127.91,127.85,0.05971593]
[1744553979622,7.824,127.86,127.85,0.05971593]
[1744553980430,7.8236,127.87,127.85,0.05971593]
[1744553981230,7.824,127.86,127.85,0.05971593]
[1744553982131,7.8236,127.87,127.85,0.05971593]
[1744553982330,16.48079571,127.91,127.85,0.05971593]
[1744553982531,55.48079571,127.93,127.85,0.05971593]
[1744553982727,7.8222,127.89,127.85,7.8243]
[1744553982935,39.0,127.93,127.88,0.04949385]
[1744553983129,39.0,127.93,127.84,16.48079571]
[1744553983330,39.0,127.93,127.89,0.06005648]
[1744553984933,16.48079571,127.95,127.89,0.06005648]
[1744553985631,39.3352,127.96,127.89,7.88165648]
[1744553985829,38.98,127.96,127.89,7.88165648]
[1744553986124,7.8191,127.94,127.89,7.88165648]
[1744553986430,38.98,127.96,127.89,7.88165648]
[1744553986734,7.8191,127.94,127.89,7.88165648]
[1744553986934,7.8191,127.94,127.9,7.8214]
[1744553987231,7.8188,127.95,127.89,0.06005648]
[1744553987431,7.8188,127.95,127.9,16.48079571]
[1744553987733,7.8188,127.95,127.91,9.9152]
[1744553988134,7.8181,127.96,127.92,7.87525297]
[1744553988534,7.8181,127.96,127.92,0.05505297]
[1744553988735,635.18578458,127.98,127.92,0.05505297]
[1744553989132,16.48079571,127.97,127.92,0.05505297]
[1744553989431,7.8194,127.94,127.92,0.05505297]
[1744553989931,635.18578458,127.98,127.92,0.05505297]
[1744553990131,15.18578458,127.98,127.92,0.05505297]
[1744553991337,15.18578458,127.98,127.92,7.87505297]
[1744553991832,23.00248458,127.98,127.94,7.8189]
[1744553992239,15.18578458,127.98,127.95,0.05323005]
[1744553992440,38.98,127.99,127.95,0.05323005]
[1744553992735,16.48079571,128.03,127.95,0.05323005]
[1744553992933,7.816,127.99,127.95,7.8181]
[1744553993133,7.816,127.99,127.98,0.05414914]
[1744553995145,7.8157,128.0,127.98,0.05414914]
[1744553995336,38.96,128.02,127.98,0.05414914]
[1744553995533,16.48079571,128.06,127.98,0.05414914]
[1744553995835,72.18948628,128.08,127.98,18.54769571]
[1744553995836,7.8129,128.05,127.98,18.54769571]
[1744553996039,7.8129,128.05,128.01,0.05339762]
[1744553996234,7.8113,128.07,128.02,38.96]
[1744553996437,16.48079571,128.12,128.02,57.59039571]
[1744553996638,1.40401174,128.11,128.03,0.05199354]
[1744553996836,16.48079571,128.08,128.02,2.1496]
[1744553997039,16.48079571,128.08,128.06,0.05788034]
[1744553997737,7.8111,128.07,128.06,0.05788034]
[1744554000739,16.48079571,128.07,127.99,38.94]
[1744554001337,55.42079571,128.09,127.99,38.94]
[1744554001643,7.8123,128.06,128.01,7.8145]
[1744554001830,0.05631683,128.05,128.03,0.05605577]
[1744554002330,7.86881683,128.05,128.03,0.05605577]
[1744554002843,7.813,128.04,128.03,0.05605577]
[1744554004238,7.86891683,128.05,128.03,0.05605577]
[1744554004539,0.05631683,128.05,128.03,0.05605577]
[1744554005036,0.05631683,128.05,128.03,38.99605577]
[1744554005438,0.05631683,128.05,128.03,0.05605577]
[1744554005944,7.813,128.04,128.03,0.05605577]
[1744554006139,16.53711254,128.05,127.98,2.0669]
[1744554006443,16.48079571,128.05,127.97,38.94]
[1744554006645,7.8156,128.0,127.97,38.94]
[1744554007140,7.8156,128.0,127.96,4.0332]
[1744554007340,7.8156,128.0,127.97,0.05185506]
[1744554007341,7.816,127.99,127.97,0.05185506]
[1744554008243,7.8166,127.98,127.97,0.05185506]
[1744554011143,16.48079571,127.99,127.92,657.74]
[1744554011343,16.48079571,127.95,127.88,38.82]
[1744554011641,38.82,127.96,127.88,38.82]
[1744554011837,55.30079571,127.97,127.88,63.12319571]
[1744554012039,55.30079571,127.97,127.88,55.30079571]
[1744554012346,0.05131292,127.94,127.91,0.05500051]
[1744554013045,7.8205,127.92,127.91,0.05500051]
[1744554014346,7.87061292,127.94,127.91,0.05500051]
[1744554014748,0.05131292,127.94,127.91,0.05500051]
[1744554016246,7.8203,127.92,127.91,0.05500051]
[1744554016848,7.8199,127.93,127.91,0.05500051]
[1744554017349,7.87071292,127.94,127.91,0.05500051]
[1744554017550,0.05131292,127.94,127.91,0.05500051]
[1744554017848,7.8198,127.93,127.91,0.05500051]
[1744554018943,7.8203,127.92,127.91,0.05500051]
[1744554022758,7.8221,127.89,127.88,38.84]
[1744554023058,16.48079571,127.92,127.85,40.9294]
[1744554023256,16.48079571,127.92,127.85,48.7538]
[1744554023659,7.8222,127.89,127.85,48.7538]
[1744554024062,0.05024265,127.88,127.86,0.05604573]
[1744554024261,0.05024265,127.88,127.86,7.87974573]
[1744554025559,0.05024265,127.88,127.86,0.05604573]
[1744554025862,7.8234,127.87,127.86,0.05604573]
[1744554029465,7.8259,127.83,127.81,4.1789]
[1744554029767,16.48079571,127.86,127.77,658.24]
[1744554030163,16.48079571,127.84,127.77,658.24]
[1744554030363,55.32079571,127.84,127.77,38.84]
[1744554030765,0.05442866,127.82,127.79,0.05349695]
[1744554032271,7.8274,127.81,127.79,0.05349695]
[1744554033867,0.05442866,127.82,127.79,0.05349695]
[1744554035670,16.53522437,127.82,127.79,0.05349695]
[1744554036569,7.8276,127.8,127.79,0.05349695]
[1744554037375,7.8274,127.81,127.79,0.05349695]
[1744554038271,7.88112866,127.82,127.79,0.05349695]
[1744554038573,0.05442866,127.82,127.79,0.05349695]
[1744554038976,7.827,127.81,127.79,0.05349695]
[1744554039474,7.8274,127.81,127.79,0.05349695]
[1744554040777,7.88112866,127.82,127.79,0.05349695]
[1744554041079,0.05442866,127.82,127.79,0.05349695]
[1744554041270,7.88112866,127.82,127.79,0.05349695]
[1744554041772,0.05442866,127.82,127.79,0.05349695]
[1744554044578,7.88122866,127.82,127.79,0.05349695]
[1744554044978,7.8271,127.81,127.79,0.05349695]
[1744554045175,0.05442866,127.82,127.79,0.05349695]
[1744554045581,7.88112866,127.82,127.79,0.05349695]
[1744554046178,0.05442866,127.82,127.79,7.88129695]
[1744554046481,0.05442866,127.82,127.79,0.05349695]
[1744554050689,7.8276,127.8,127.79,0.05349695]
[1744554051284,7.8301,127.76,127.75,4.2067]
[1744554051481,7.8301,127.76,127.73,38.74]
[1744554052289,7.8298,127.77,127.73,46.5718]
[1744554052487,0.04952777,127.76,127.73,38.79167799]
[1744554052687,16.48079571,127.82,127.73,38.74]
[1744554052989,675.12079571,127.86,127.76,16.48079571]
[1744554053284,38.74,127.89,127.8,16.48079571]
[1744554053486,7.8243,127.86,127.82,24.30679571]
[1744554053687,38.74,127.89,127.81,40.8078]
[1744554053881,7.8795479,127.85,127.83,0.05122318]
[1744554054088,38.74,127.89,127.83,0.05122318]
[1744554054586,7.8234,127.87,127.83,7.87662318]
[1744554055290,0.05760075,127.86,127.84,7.8251]
[1744554055487,658.66,127.92,127.84,16.48079571]
[1744554055683,38.74,127.92,127.84,16.48079571]
[1744554055889,72.18948628,127.93,127.85,38.74]
[1744554056589,0.05217474,127.9,127.88,0.05313472]
[1744554056791,7.8227,127.89,127.88,0.05313472]
[1744554058992,7.825,127.85,127.82,1.9647]
[1744554059192,16.48079571,127.9,127.82,1.9647]
[1744554059392,16.48079571,127.9,127.82,3.9472]
[1744554059794,16.48079571,127.9,127.82,1.9825]
[1744554059993,0.05823189,127.87,127.85,0.05275246]
[1744554060397,16.48079571,127.86,127.78,38.74]
[1744554060593,16.48079571,127.82,127.74,2.0495]
[1744554060793,7.8287,127.79,127.74,14.0186]
[1744554060993,16.48079571,127.82,127.74,14.0186]
[1744554061297,7.8287,127.79,127.74,14.0186]
[1744554061491,38.74,127.83,127.75,7.8306]
[1744554061798,0.05972944,127.78,127.76,16.48079571]
[1744554062096,38.74,127.87,127.77,38.74]
[1744554062391,7.8274,127.81,127.77,38.74]
[1744554062595,16.48079571,127.84,127.77,38.74]
[1744554062785,16.48079571,127.86,127.77,38.74]
[1744554063095,0.05229043,127.83,127.8,0.05130605]
[1744554063593,7.87859043,127.83,127.8,0.05130605]
[1744554063789,0.05229043,127.83,127.8,0.05130605]
[1744554065193,7.8239,127.87,127.82,7.8258]
[1744554065393,7.8239,127.87,127.83,2.1757]
[1744554066103,7.8241,127.86,127.83,2.1757]